Cogmind - Beta 13 @@@ ROGUE MODE // 2024.05.15 @ 03:14:23 Player: A Moose Result: Destroyed by QK-Y54(R) with Subdweller Beam Cannon Performance ------------- Evolutions (0) 0 Regions Visited (3) 600 Robots Destroyed (7) 35 Value Destroyed (219) 219 Prototype IDs (0) 0 Alien Tech Used (0) 0 Bonus (0) 0 TOTAL SCORE: 854 Bonus ------- None Cogmind --------- Core Integrity 0/250 Matter 279/300 Energy 93/250 System Corruption 0% Temperature Cool (9) Movement Treading (160) Location -10/Subcaves Parts ------- > --- POWER (1) -------- Ion Engine > --- PROPULSION (2) --- Light Treads Light Treads > --- UTILITY (2) ------ Medium Storage Unit Targeting Computer > --- WEAPON (2) ------- Beam Rifle > --- INVENTORY (10) --- Subdweller Power Source Light Treads Light Treads Light Treads Wheel Compact Wheel ECM Suite Mining Laser Peak State ------------ > --- POWER ------------ Light Nuclear Core > --- PROPULSION ------- Light Treads Light Treads > --- UTILITY ---------- Medium Storage Unit Targeting Computer > --- WEAPON ----------- Beam Rifle Subdweller Machine Gun > --- INVENTORY -------- Ion Engine Light Ion Engine Light Treads Light Treads Light Treads Light Treads Wheel Compact Wheel ECM Suite Mining Laser [Rating: 12] Favorites ----------- Power Light Ion Engine Engine Light Ion Engine Power Core Light Nuclear Core Propulsion Light Treads Treads Light Treads Utility Targeting Computer Storage Medium Storage Unit Processor Targeting Computer Weapon Light Assault Rifle Energy Gun EM Pulse Gun Ballistic Gun Light Assault Rifle Special Weapon Mining Laser Build | -11 -10 -10 -10 ------- Run | Yrd Mat Min Sub Slots Evolved . | . . . . Power . | . . . . Propulsion . | . . . . Utility . | . . . . Weapon . | . . . . Parts Attached 14 | 6 2 1 5 Power 3 | 1 . . 2 Engine 2 | 1 . . 1 Core 1 | . . . 1 Reactor . | . . . . Propulsion 3 | 2 . . 1 Treads 3 | 2 . . 1 Leg . | . . . . Wheel . | . . . . Hover . | . . . . Flight . | . . . . Utility 3 | 1 2 . . Device . | . . . . Storage 2 | 1 1 . . Processor 1 | . 1 . . Hackware . | . . . . Protection . | . . . . Artifact . | . . . . Weapon 5 | 2 . 1 2 Energy Gun 2 | 1 . . 1 Energy Cannon . | . . . . Ballistic Gun 2 | 1 . . 1 Ballistic Cannon . | . . . . Launcher . | . . . . Special Weapon 1 | . . 1 . Impact Weapon . | . . . . Slashing Weapon . | . . . . Piercing Weapon . | . . . . Special Melee Weapon . | . . . . Unidentified Prototypes . | . . . . Parts Lost 3 | . . . 3 Power 1 | . . . 1 Propulsion 1 | . . . 1 Utility . | . . . . Weapon 1 | . . . 1 Highest Loss Streak 3 | . . . 3 To Critical Strikes . | . . . . Average Slot Usage (%) 98 | . 96 100 99 Engine 10 | . 14 14 4 Core 3 | . . . 9 Treads 28 | . 28 28 28 Storage 14 | . 14 14 14 Processor 12 | . 10 14 14 Energy Gun 12 | . 14 12 11 Ballistic Gun 14 | . 14 14 14 Special Weapon 1 | . . 1 2 Naked Turns . | . . . . Heaviest Build 22 | 11 16 16 22 Greatest Support 40 | 40 40 40 40 Greatest Overweight (x) . | . . . . Average Overweight (x) . | . . . . Largest Inventory Capacity 10 | 8 10 10 10 Average Capacity 9 | 7 9 10 10 Most Carried 10 | 7 10 10 10 Average Carried 9 | 4 8 10 9 Final Capacity 10 | 8 10 10 10 Final Carried 10 | 4 10 10 8 Class Distribution -------------------- 100% | Mutant Dominant Class ---------------- Mutant | -10/Materials Mutant | -10/Mines Mutant | -10/Subcaves Resources | -11 -10 -10 -10 ----------- Run | Yrd Mat Min Sub Matter Collected 343 | 243 45 . 55 Remotely . | . . . . Salvage Created 288 | . 127 . 161 Parts 18 | . 11 . 7 Haulers Intercepted . | . . . . Recyclers Shooed 1 | . 1 . . Parts Field Recycled . | . . . . Retrieved Matter . | . . . . Parts Self-Destructed 12 | . . . 12 Prevented . | . . . . Kills | -11 -10 -10 -10 ------- Run | Yrd Mat Min Sub Combat Hostiles Destroyed 6 | . 3 . 3 Guns 6 | . 3 . 3 Classes Destroyed 5 | . 3 . 2 Watcher 1 | . 1 . . Swarmer 1 | . 1 . . Grunt 2 | . 2 . . Sentry 1 | . . . 1 Subdweller 2 | . . . 2 Best Kill Streak 2 | . 2 . 1 Combat Bots Only 2 | . 2 . 1 Max Kills in Single Turn 1 | . 1 . 1 Gunslinging . | . . . . Exploded . | . . . . Melee . | . . . . Uniques/NPCs Destroyed . | . . . . Combat | -11 -10 -10 -10 -------- Run | Yrd Mat Min Sub Hostile Shots Fired 38 | . 7 . 31 Missed 7 | . 1 . 6 Damage Taken 733 | . 54 . 679 Core 270 | . 16 . 254 Absorbed by Shields . | . . . . Core Remaining (%) 100 | 100 . . . Volleys Fired 30 | . 11 3 16 Largest 2 | . 2 1 2 Hottest 100 | . 60 100 86 Shots Fired 53 | . 22 3 28 Gun 50 | . 22 . 28 Cannon . | . . . . Launcher . | . . . . Special 3 | . . 3 . Kinetic 27 | . 11 . 16 Thermal 15 | . . 3 12 Explosive . | . . . . Electromagnetic 11 | . 11 . . Robot Hit Streak 20 | . 7 . 20 Robot Miss Streak 2 | . 2 . 1 Penetration Max . | . . . . Secondary Targets . | . . . . Shots Hit Robots 40 | . 16 . 24 Core Hits 11 | . 6 . 5 Critical Kills . | . . . . Critical Parts Destroyed . | . . . . Critical Strikes . | . . . . Melee Attacks . | . . . . Impact . | . . . . Slashing . | . . . . Piercing . | . . . . Sneak Attacks . | . . . . Combat Hostiles . | . . . . Follow-up Attacks . | . . . . Damage Inflicted 569 | . 183 . 386 Guns 569 | . 183 . 386 Cannons . | . . . . Explosions . | . . . . Melee . | . . . . Ramming . | . . . . Kinetic 283 | . 44 . 239 Thermal 147 | . . . 147 Explosive . | . . . . Electromagnetic 139 | . 139 . . Impact . | . . . . Slashing . | . . . . Piercing . | . . . . Highest Corruption . | . . . . Average Corruption . | . . . . Corruption Purged . | . . . . Corruption Blocked . | . . . . Overload Shots . | . . . . Overflow Damage . | . . . . Projectiles . | . . . . Explosions . | . . . . Melee . | . . . . Knockbacks . | . . . . Impact . | . . . . Kinetic . | . . . . Secondary . | . . . . Self-Inflicted Damage . | . . . . Shots . | . . . . Rammed . | . . . . Targets Rammed . | . . . . Kicked . | . . . . Crushed . | . . . . Highest Temperature 253 | . 52 42 253 Average Temperature 36 | . 21 18 141 Received Heat Transfer 505 | . 18 . 487 Effects 1 | . . . 1 Energy Bleed 1 | . . . 1 Siege Activations . | . . . . Robots Corrupted . | . . . . Combat Hostiles . | . . . . Parts Fried . | . . . . Impact Corruptions . | . . . . Robots Melted . | . . . . Combat Hostiles . | . . . . Parts Melted . | . . . . Heat Transferred 370 | . . . 370 Parts Sabotaged . | . . . . Parts Stolen . | . . . . Parts Stripped . | . . . . Power Chain Reactions . | . . . . Alert | -11 -10 -10 -10 ------- Run | Yrd Mat Min Sub Peak Influence 103 | . 103 39 . Initial 39 | . . 39 . Average 32 | . 36 39 . Maximum Alert Level . | . . . . Low Security (%) 100 | 100 100 100 . Level 1 . | . . . . Level 2 . | . . . . Level 3 . | . . . . Level 4 . | . . . . Level 5 . | . . . . High Security . | . . . . Max Security . | . . . . Squads Dispatched 1 | . 1 . . Investigation 1 | . 1 . . Extermination . | . . . . Reinforcement . | . . . . Assault . | . . . . Garrison . | . . . . Intercept . | . . . . Searches Triggered . | . . . . Construction Impeded . | . . . . Haulers Reinforced . | . . . . Active Scanning Responses . | . . . . Cargo Convoy Interrupts . | . . . . Stealth | -11 -10 -10 -10 --------- Run | Yrd Mat Min Sub Distress Signals 1 | . 1 . . Communications Jammed . | . . . . Distress Signals . | . . . . Times Spotted 10 | . 5 . 5 Peak Tracking Total 2 | . 2 . 2 Tactical Retreats . | . . . . Traps | -11 -10 -10 -10 ------- Run | Yrd Mat Min Sub Traps Triggered 1 | . 1 . . Indirectly . | . . . . Trap Hack Attempts . | . . . . Triggered . | . . . . Disarmed . | . . . . Reprogrammed . | . . . . Reused . | . . . . Traps Extracted . | . . . . Installed . | . . . . Triggered . | . . . . Machines | -11 -10 -10 -10 ---------- Run | Yrd Mat Min Sub Machines Disabled . | . . . . Max in Single Turn . | . . . . Machines Repaired . | . . . . Machines Dismantled . | . . . . Machines Sabotaged . | . . . . Overloaded Fab Kills . | . . . . Hacking | -11 -10 -10 -10 --------- Run | Yrd Mat Min Sub Machines Accessed 2 | . 2 . . Terminals 2 | . 2 . . Fabricators . | . . . . Repair Stations . | . . . . Recycling Units . | . . . . Scanalyzers . | . . . . Garrison Access . | . . . . Total Hacks 8 | . 8 . . Successful 4 | . 4 . . Failed 4 | . 4 . . Catastrophic 2 | . 2 . . Database Lockouts . | . . . . Manual 6 | . 6 . . Terminals 8 | . 8 . . Fabricators . | . . . . Repair Stations . | . . . . Recycling Units . | . . . . Scanalyzers . | . . . . Garrison Access . | . . . . Terminal Hacks 4 | . 4 . . Robot Analysis 4 | . 4 . . Fabricator Hacks . | . . . . Repair Station Hacks . | . . . . Recycling Unit Hacks . | . . . . Scanalyzer . | . . . . Garrison Access Hacks . | . . . . Unauthorized Hacks . | . . . . Terminals . | . . . . Fabricators . | . . . . Repair Stations . | . . . . Recycling Units . | . . . . Scanalyzers . | . . . . Garrison Access . | . . . . Data Cores Recovered . | . . . . Used . | . . . . Hacking Detections 2 | . 2 . . Full Trace Events . | . . . . Feedback Events . | . . . . Feedback Blocked . | . . . . Robot Schematics Acquired . | . . . . Robots Built . | . . . . Authchips . | . . . . Time . | . . . . Total Robot Build Rating . | . . . . Part Schematics Acquired . | . . . . Parts Built . | . . . . Authchips . | . . . . Time . | . . . . Total Part Build Rating . | . . . . Parts Repaired . | . . . . Time . | . . . . Parts Recycled . | . . . . Recycled Matter . | . . . . Retrieved Matter . | . . . . Retrieved Components . | . . . . Parts Scanalyzed . | . . . . Part Schematics Acquired . | . . . . Parts Damaged . | . . . . Bothacking | -11 -10 -10 -10 ------------ Run | Yrd Mat Min Sub Used RIF Installer . | . . . . Robots Hacked . | . . . . Non-combat . | . . . . Combat . | . . . . Robot Hacks Applied . | . . . . Relay Couplers Released . | . . . . Fabnet Peak Effective % . | . . . . Robots Rewired . | . . . . Allies Hacked . | . . . . Hacks Repelled . | . . . . Allies | -11 -10 -10 -10 -------- Run | Yrd Mat Min Sub Total Allies 3 | . . 3 . Largest Group 3 | . . 3 3 Highest-Rated Group 40 | . . 40 40 Highest-Rated Ally 16 | . . 16 16 Total Orders . | . . . . Ally Attacks 17 | . . . 17 Total Damage 98 | . . . 98 Kills . | . . . . Allies Corrupted . | . . . . Allies Melted . | . . . . Intel | -11 -10 -10 -10 ------- Run | Yrd Mat Min Sub Robot Analysis Total 4 | . 4 . . Derelict Logs Recovered . | . . . . Drone Launches . | . . . . Drone Recoveries . | . . . . Exploration | -11 -10 -10 -10 ------------- Run | Yrd Mat Min Sub Turns Passed 795 | 76 266 194 259 Spaces Moved 423 | 47 141 113 122 Core 13 | 13 . . . Treads 410 | 34 141 113 122 Legs . | . . . . Wheels . | . . . . Hover . | . . . . Flight . | . . . . Fastest Speed 50 | 50 160 160 160 Average Speed 156 | 129 160 160 160 Slowest Speed 160 | 160 160 160 160 Overloaded Moves . | . . . . Propulsion Burnouts . | . . . . Robots Hopped . | . . . . Cave-ins Triggered . | . . . . Exploration Rate (%) 19 | 3 42 25 8 Regions Visited 3 Branch Regions 2 Pre-discovered Areas . | . . . . Known Exits Taken . | . . . . Unknown Exits Taken 3 | 1 1 1 . Scrap Searched . | . . . . Spaces Dug . | . . . . Terrain Destroyed . | . . . . Melee . | . . . . Projectile . | . . . . AOE . | . . . . Terrain Rammed . | . . . . Walls Destroyed . | . . . . Machines Disabled . | . . . . Actions | -11 -10 -10 -10 --------- Run | Yrd Mat Min Sub Total 501 | 62 162 117 160 Wait 12 | . . 1 11 Move 420 | 46 140 112 122 Hop . | . . . . Pick Up 19 | 10 7 . 2 Fast Attach 2 | . 1 . 1 Attach 8 | 6 . . 2 Detach . | . . . . Swap 4 | . 1 1 2 Drop 6 | . 2 . 4 Fire 30 | . 11 3 16 Melee . | . . . . Ram . | . . . . Kick . | . . . . Crush . | . . . . Escape Stasis . | . . . . Rewire . | . . . . Trap . | . . . . Miscellaneous . | . . . . Route ------- -11/Scrapyard -10/Materials (discovered 2 exits: [*Mat] / [*Min]) -10/Mines -10/Subcaves History --------- Turn | Location | Event 11 | -11/Scrapyard | Discovered new exit (range 16) 77 | -11/Scrapyard | Entered Materials 272 | -10/Materials | Discovered new exit (range 14) 302 | -10/Materials | Discovered new exit (range 15) 316 | -10/Materials | Build established: Mutant 343 | -10/Materials | Entered Mines 415 | -10/Mines | Assisted by bots powering up and referring to "LRC-V3" 532 | -10/Mines | Discovered new exit (range 3) 537 | -10/Mines | Entered Subcaves 537 | -10/Subcaves | Accompanied by 3 allies 629 | -10/Subcaves | Shifting Twisted Machinery released Mak. Leg 677 | -10/Subcaves | Shifting Twisted Machinery released Mak. Thermal Plating 749 | -10/Subcaves | Ambushed by Subdwellers from Twisted Machinery 778 | -10/Subcaves | Core integrity fell below 50% 788 | -10/Subcaves | Core integrity fell below 20% 796 | -10/Subcaves | Destroyed by QK-Y54(R) with Subdweller Beam Cannon Last Messages --------------- Acquired 39 matter. Mak. Leg falls loose from the Twisted Machinery. Dropped Lgt. Assault Rifle. Acquired Sub. Machine Gun. Dropped Lgt. Ion Engine. Acquired Sub. Power Source. Acquired 10 matter. Subatomizers dissect the Lgt. Assault Rifle. JB-3SH(R) destroyed. Acquired 6 matter. Subatomizers dissect the Lgt. Assault Rifle. Mak. Thermal Plating falls loose from the Twisted Machinery. QK-Y54(R) emerges from the Twisted Machinery. Critical hit (Meltdown: +280). Overheating: Energy bleed (-27). Lgt. Nuclear Core destroyed. Lgt. Treads destroyed. Destroyed Scrap Shield. Sub. Machine Gun destroyed. Map ----- +----------------------------------------------------+ | ??#" " ""#######???# ## #?????????? | | ???#" """= #???#### ### #### ##?????????? | | ???##"""" !%&[* #??????# ### #?? #??????????? | | ????#"""####& ##??????## ### ##? #??????????? | | ????# "??#####%#####?????# ## ## ##?????????? | | ???? ""??#"##=&[ # ##????# ### "##"???????? | | ?????" ##" # !% #???## ## ""????????? | | ??????""""""%# * [ ##### ## ??????????? | | ??????"""" ##=%* #####"??????????? | | ??????# ## #????#??????????? | | ?????????### # ## #???????????????? | | ???????????## ########## #???????????????? | | ????????????#########????????## #???????????????? | | ?????????????????????????????# #???????????????? | | ?????????????????????????????# ##??????????????? | | ?????????????????????????????# ####???????????? | | ?????????????????????????????## ##??????????? | | ????????????????????????????## ##?????????? | | ???????????????????????????## #?????????? | | ??????????????????????????## ## ####?????????? | | ??????????????????????##### ##?###????????????? | | ??????????????????????#;# # ##????????????????? | | ??????????????????????# ####?????????????? | | ??????????????????????# #?????????????? | | ??????????????????????## # # #?????????????? | | ??????????????????????# @;### #????#????????? | | ??????????????????????## #?# ##?# ## ??????? | | ??????????????????????## ##?# ## #?????? | | ?????????????????????## RR##### ?????? | | ?????????????????????# #????? | | ?????????????????????# " ?????? | | ?????????????????????#### ""???????? | | ????????????????????????# ##### ""???????? | | ????????????????????????## ###????#### "???????? | | ?????????????????????????###?????????????????????? | | ?????????????????????????????????????????????????? | | ?????????????????????????????????????????????????? | | ?????????????????????????????????????????????????? | | ?????????????????????????????????????????????????? | | ?????????????????????????????????????????????????? | | ?????????????????????????????????????????????????? | | ?????????????????????????????????????????????????? | | ?????????????????????????????????????????????????? | | ?????????????????????????????????????????????????? | | ?????????????????????????????????????????????????? | | ?????????????????????????????????????????????????? | | ?????????????????????????????????????????????????? | | ?????????????????????????????????????????????????? | | ?????????????????????????????????????????????????? | | ?????????????????????????????????????????????????? | +----------------------------------------------------+ Best States ------------- Heat Dissipation 25 Energy Generation 14 Energy Capacity 160 Matter Stores 300 Matter Capacity 300 Sight Range 16 Terrain Scan Density 10 Evasion (%) 50 Targeting Accuracy 5 Recoil Reduction 2 Item Schematics ----------------- None Robot Schematics ------------------ None Fabricated ------------ Nothing Alien Tech Used ----------------- None Achievements -------------- None Challenges ------------ None Game ------ Seed RelayHeartScanner Manual? 0 Play Time 00:09:33 Cumulative 100.5 hours Start 2024.05.15 @ 03:07:40 End 2024.05.15 @ 03:14:23 Sessions 1 Manual Loads 0 Difficulty Rogue Special Mode None Game No. 105 Rogue 96 Adventurer 9 Explorer 0 Win Type - Total 0 Types 0/0/0/0/0/0/0/0/0 Lore% 50 Gallery% 61 Achievement% 47 Wizard Run 0 Options --------- Layout 1 ASCII 0 Keyboard 0 Movement Numpad Keybinds 0 Fullscreen 1 Font 24/Smallcaps Map View 50x35 Zoom Use 0% Tactical HUD 0 Map Filters NONE Filters NONE Steam 1 RUN: 8aea95a8-32de-45fb-9d50-e0a1238c4fa7